bitfinex-derivatives/quotes_BTCF0:USTF0_20210707
["timestamp","ask_amount","ask_price","bid_price","bid_amount"]
[1625658807976,5.56861409,34836.0,34835.0,5.68672544]
[1625658815968,7.05072417,34836.0,34835.0,5.68672544]
[1625658817830,5.56861409,34836.0,34835.0,5.68672544]
[1625658818072,7.05109574,34836.0,34835.0,5.68672544]
[1625658818492,5.56861409,34836.0,34835.0,5.68672544]
[1625658819271,7.05119332,34836.0,34835.0,5.68672544]
[1625658819451,5.56861409,34836.0,34835.0,5.68672544]
[1625658820952,10.17501409,34836.0,34835.0,5.68672544]
[1625658821194,11.6575739,34836.0,34835.0,5.68672544]
[1625658825400,11.69149445,34836.0,34835.0,5.68672544]
[1625658825702,11.6575739,34836.0,34835.0,5.68672544]
[1625658827323,7.0511739,34836.0,34835.0,5.68672544]
[1625658828104,7.35652386,34836.0,34831.0,0.48115088]
[1625658828225,7.44322386,34836.0,34831.0,0.48115088]
[1625658828343,7.44322386,34836.0,34831.0,0.24057544]
[1625658828524,6.09449239,34832.0,34831.0,0.24057544]
[1625658828705,9.80969239,34832.0,34824.0,0.08436915]
[1625658828824,9.80969239,34832.0,34821.0,0.5906206]
[1625658829007,9.80969239,34832.0,34820.0,0.50624623]
[1625658829008,2.13922901,34822.0,34820.0,0.25312464]
[1625658829183,2.46882901,34822.0,34820.0,0.25312464]
[1625658829363,2.15203158,34821.0,34820.0,0.25312464]
[1625658829603,2.15203158,34821.0,34820.0,0.25810624]
[1625658829724,3.30518753,34821.0,34820.0,0.5118677]
[1625658829845,3.30518753,34821.0,34820.0,1.23359402]
[1625658829966,3.30518753,34821.0,34820.0,1.57150393]
[1625658830146,3.30518753,34821.0,34820.0,1.23359402]
[1625658830567,3.29239707,34821.0,34820.0,1.23359402]
[1625658831591,4.61369416,34821.0,34820.0,4.11249203]
[1625658831890,4.61369416,34821.0,34820.0,2.92706344]
[1625658832010,4.87298416,34821.0,34820.0,2.92706344]
[1625658834175,4.61369416,34821.0,34820.0,2.92706344]
[1625658835978,3.29239707,34821.0,34820.0,2.92706344]
[1625658836760,3.29239707,34821.0,34820.0,4.11148881]
[1625658836879,3.29239707,34821.0,34820.0,5.46508649]
[1625658836880,2.13924112,34821.0,34820.0,5.46508649]
[1625658837720,0.05604834,34823.0,34820.0,5.46508649]
[1625658837842,1.32543193,34825.0,34821.0,1.35360183]
[1625658837961,1.32543193,34825.0,34824.0,0.24057544]
[1625658838388,1.32673161,34829.0,34824.0,1.59901873]
[1625658838561,1.32673161,34829.0,34828.0,4.34233]
[1625658838862,1.32673161,34829.0,34828.0,4.34731017]
[1625658839281,1.32638592,34830.0,34828.0,4.34731017]
[1625658839645,1.32638592,34830.0,34829.0,0.00498017]
[1625658840004,1.32638592,34830.0,34829.0,0.24555561]
[1625658843970,1.32638592,34830.0,34829.0,0.24057544]
[1625658844210,1.33917476,34830.0,34829.0,0.24057544]
[1625658845111,1.33917476,34830.0,34829.0,0.57895101]
[1625658846320,1.33917476,34830.0,34829.0,0.24057544]
[1625658846678,1.32638592,34830.0,34829.0,0.2455555]
[1625658847040,2.81791844,34830.0,34829.0,0.75315739]
[1625658847158,2.83070745,34830.0,34829.0,0.74817733]
[1625658847338,2.83070745,34830.0,34829.0,0.832779]
[1625658847704,2.83070745,34830.0,34829.0,0.32517711]
[1625658847818,2.83070745,34830.0,34829.0,0.24057544]
[1625658857014,3.16397745,34830.0,34829.0,0.24057544]
[1625658857794,4.32316791,34830.0,34829.0,0.24057544]
[1625658858998,5.97847077,34830.0,34829.0,0.24057544]
[1625658859299,4.32316791,34830.0,34829.0,0.24057544]
[1625658860201,5.9783228,34830.0,34829.0,0.24057544]
[1625658860324,4.32316791,34830.0,34829.0,0.24057544]
[1625658860623,5.9780589,34830.0,34829.0,0.24057544]
[1625658860862,4.32316791,34830.0,34829.0,0.24057544]
[1625658867954,5.31570992,34830.0,34829.0,0.24057544]
[1625658873783,5.31570992,34830.0,34829.0,0.24554834]
[1625658874024,5.31570992,34830.0,34829.0,0.33017165]
[1625658874507,5.31570992,34830.0,34829.0,0.24554834]
[1625658874747,5.31570992,34830.0,34829.0,0.33017201]
[1625658876369,5.31570992,34830.0,34829.0,0.49943389]
[1625658876490,5.31570992,34830.0,34829.0,0.33017201]
[1625658876730,5.31570992,34830.0,34829.0,0.24554834]
[1625658881543,5.31570992,34830.0,34829.0,0.24057544]
[1625658882088,5.31570992,34830.0,34829.0,0.24554872]
[1625658886470,5.31570992,34830.0,34829.0,0.33020853]
[1625658887612,5.31570992,34830.0,34829.0,0.4995267]
[1625658887911,5.31570992,34830.0,34829.0,0.33020853]
[1625658888092,5.31570992,34830.0,34829.0,0.49953673]
[1625658890078,5.31570992,34830.0,34829.0,0.77831673]
[1625658890201,3.4909074,34830.0,34829.0,1.78087443]
[1625658890439,3.4909074,34830.0,34829.0,2.96612422]
[1625658893384,0.01278901,34830.0,34829.0,0.76490416]
[1625658893624,3.5115027,34830.0,34829.0,1.78050082]
[1625658893744,3.49871369,34830.0,34829.0,1.78050082]
[1625658894045,3.51151743,34830.0,34829.0,1.50172082]
[1625658895548,5.01000378,34830.0,34829.0,0.48612416]
[1625658897050,5.01000378,34830.0,34829.0,0.82473565]
[1625658897773,5.67620679,34830.0,34829.0,0.48612416]
[1625658898613,4.17772044,34830.0,34829.0,2.17909581]
[1625658898854,4.17772044,34830.0,34829.0,3.36413613]
[1625658899278,4.1649167,34830.0,34829.0,3.36413613]
[1625658900484,4.17771828,34830.0,34829.0,3.36413613]
[1625658900598,4.17771828,34830.0,34829.0,2.17909581]
[1625658907392,4.1649167,34830.0,34829.0,2.17909581]
[1625658908115,4.1649167,34830.0,34829.0,3.36375557]
[1625658908359,2.83209719,34830.0,34829.0,3.36375557]
[1625658911842,2.83209719,34830.0,34829.0,4.71707919]
[1625658912508,2.83209719,34830.0,34829.0,3.36375557]
[1625658913415,1.66585929,34830.0,34829.0,3.36375557]
[1625658914616,2.83452282,34830.0,34829.0,3.36375557]
[1625658915518,1.66585929,34830.0,34829.0,3.36375557]
[1625658915879,2.83479699,34830.0,34829.0,3.36375557]
[1625658916121,1.66585929,34830.0,34829.0,3.36375557]
[1625658916961,2.8346707,34830.0,34829.0,3.36375557]
[1625658925859,2.84747455,34830.0,34829.0,3.36375557]
[1625658927846,3.34855823,34830.0,34829.0,3.871162]
[1625658928143,3.33575438,34830.0,34829.0,3.871162]
[1625658928326,3.34854315,34830.0,34829.0,3.871162]
[1625658930494,3.34854315,34830.0,34829.0,4.162942]
[1625658930973,3.34854315,34830.0,34829.0,4.40351744]
[1625658935181,3.43484315,34830.0,34829.0,4.40351744]
[1625658935300,3.74430315,34830.0,34829.0,4.11173744]
[1625658935420,3.65800315,34830.0,34829.0,4.11173744]
[1625658935543,4.9948291,34830.0,34829.0,2.92707768]
[1625658946904,6.50002562,34830.0,34829.0,1.91129469]
[1625658947024,6.74060106,34830.0,34829.0,1.91129469]
[1625658947145,6.74060106,34830.0,34829.0,1.23410603]
[1625658947387,6.74060106,34830.0,34829.0,0.98073276]
[1625658947506,10.75520106,34830.0,34829.0,0.98073276]
[1625658947866,10.75520106,34830.0,34829.0,0.7266996]
[1625658948347,10.75520106,34830.0,34829.0,0.72172632]
[1625658950698,10.75520106,34830.0,34829.0,1.23473522]
[1625658950816,10.75520106,34830.0,34829.0,1.57341784]
[1625658951303,10.75520106,34830.0,34829.0,1.06539303]
[1625658951539,10.75520106,34830.0,34829.0,1.23473212]
[1625658951900,10.75520106,34830.0,34829.0,1.22974979]
[1625658952323,10.75520106,34830.0,34829.0,0.80638937]
[1625658953104,10.75520106,34830.0,34829.0,1.31436209]
[1625658953284,10.75520106,34830.0,34829.0,0.97571361]
[1625658954128,10.75520106,34830.0,34829.0,0.80638937]
[1625658955029,10.75520106,34830.0,34829.0,1.31430449]
[1625658955271,10.75520106,34830.0,34829.0,0.97569441]
[1625658956171,10.75520106,34830.0,34829.0,0.80638937]
[1625658956411,10.75520106,34830.0,34829.0,0.72172632]
[1625658959959,10.75520106,34830.0,34829.0,4.86402632]
[1625658961042,10.75520106,34830.0,34829.0,4.94864209]
[1625658961280,10.75520106,34830.0,34829.0,5.11787304]
[1625658961581,10.75520106,34830.0,34829.0,4.94864209]
[1625658961884,10.75520106,34830.0,34829.0,4.86402632]
[1625658963866,6.74060106,34830.0,34829.0,4.86402632]
[1625658963986,6.74060106,34830.0,34829.0,4.94863195]
[1625658964287,6.74060106,34830.0,34829.0,5.11784172]
[1625658964767,6.74060106,34830.0,34829.0,5.45625673]
[1625658964888,6.74060106,34830.0,34829.0,5.46123862]
[1625658966149,6.74060106,34830.0,34829.0,5.12282361]
[1625658968914,6.74060106,34830.0,34829.0,5.46121111]
[1625658969157,6.74060106,34830.0,34829.0,5.37660548]
[1625658970056,10.91030106,34830.0,34829.0,5.37660548]
[1625658971198,10.91030106,34830.0,34829.0,5.46120315]
[1625658971440,10.91030106,34830.0,34829.0,5.12281565]
[1625658973004,10.91030106,34830.0,34829.0,5.37661554]
[1625658973423,10.91030106,34830.0,34829.0,5.65309554]
[1625658974926,10.91030106,34830.0,34829.0,5.48388577]
[1625658975168,10.91030106,34830.0,34829.0,6.32990291]
[1625658975948,10.91030106,34830.0,34829.0,5.99152814]
[1625658976787,10.91030106,34830.0,34829.0,5.65309451]
[1625658977029,10.91030106,34830.0,34829.0,5.99153327]
[1625658977753,10.91030106,34830.0,34829.0,5.65315309]
[1625658978412,10.91030106,34830.0,34829.0,5.99161939]
[1625658979133,10.91030106,34830.0,34829.0,5.73777407]
[1625658979252,10.91030106,34830.0,34829.0,5.46129407]
[1625658979493,10.91030106,34830.0,34829.0,1.31899407]
[1625658979613,10.91030106,34830.0,34829.0,0.98055531]
[1625658979854,10.91030106,34830.0,34829.0,0.72670821]
[1625658980936,6.74060106,34830.0,34829.0,0.72670821]
[1625658981241,6.74060106,34830.0,34829.0,1.23440314]
[1625658981417,6.74060106,34830.0,34829.0,1.57287708]
[1625658981898,6.74060106,34830.0,34829.0,1.23441267]
[1625658982679,6.74060106,34830.0,34829.0,0.98057175]
[1625658982918,6.74060106,34830.0,34829.0,0.81133058]
[1625658983943,6.74060106,34830.0,34829.0,0.98058123]
[1625658984784,6.74060106,34830.0,34829.0,0.81133058]
[1625658985325,6.74060106,34830.0,34829.0,0.98058899]
[1625658986706,6.74060106,34830.0,34829.0,0.81133058]
[1625658986947,6.74060106,34830.0,34829.0,0.9806084]
[1625658987847,6.74060106,34830.0,34829.0,0.81133058]
[1625658988930,6.74060106,34830.0,34829.0,0.57075514]
[1625658989474,6.74060106,34830.0,34829.0,0.74006884]
[1625658990978,6.74060106,34830.0,34829.0,0.48613277]
[1625658991338,8.42978755,34830.0,34829.0,0.48613277]
[1625658991879,8.42978755,34830.0,34829.0,0.48115088]
[1625659003358,8.42978755,34830.0,34829.0,0.24057544]
[1625659017907,8.46371454,34830.0,34829.0,0.24057544]
[1625659022595,8.55071454,34830.0,34829.0,0.24057544]
[1625659023017,8.46371454,34830.0,34829.0,0.24057544]
[1625659026743,8.55081454,34830.0,34829.0,0.24057544]
[1625659029986,8.46371454,34830.0,34829.0,0.24057544]
[1625659031011,8.54911454,34830.0,34829.0,0.24057544]
[1625659032518,8.54911454,34830.0,34823.0,0.25396734]
[1625659032821,8.54911454,34830.0,34822.0,0.25397139]
[1625659032822,6.22242443,34824.0,34822.0,0.25397139]
[1625659032998,0.6821512,34830.0,34821.0,0.59260238]
[1625659032999,6.22095164,34823.0,34821.0,0.59260238]
[1625659033117,6.47582164,34823.0,34821.0,0.59260238]
[1625659033238,6.22014378,34822.0,34821.0,0.25397385]
[1625659033478,6.2329052,34822.0,34821.0,0.08465795]
[1625659033598,6.71405608,34822.0,34821.0,0.08465795]
[1625659033718,6.71405608,34822.0,34821.0,0.08965254]
[1625659034018,6.71405608,34822.0,34821.0,0.00499459]
[1625659034259,6.71405608,34822.0,34820.0,0.83318673]
[1625659034384,6.21804002,34821.0,34820.0,0.83318673]
[1625659034739,6.23080141,34821.0,34820.0,0.83818128]
[1625659035106,6.23080141,34821.0,34820.0,0.49954451]
[1625659035763,6.23080141,34821.0,34820.0,0.49454996]
[1625659035885,6.23080141,34821.0,34820.0,0.24057544]
[1625659039788,6.23080141,34821.0,34817.0,0.08463044]
[1625659040032,5.02739118,34818.0,34813.0,0.08460668]
[1625659040268,4.15515088,34822.0,34812.0,0.08461019]
[1625659040269,5.02509113,34814.0,34812.0,0.08461019]
[1625659040389,5.29126113,34814.0,34812.0,0.08461019]
[1625659040511,5.29126113,34814.0,34811.0,0.24057544]
[1625659040512,5.0242514,34813.0,34811.0,0.3251879]
[1625659040689,4.01926515,34812.0,34811.0,0.08461246]
[1625659040809,9.7391233,34812.0,34811.0,0.08461246]
[1625659041474,9.75188922,34812.0,34810.0,0.08462115]
[1625659041655,5.7432339,34811.0,34810.0,0.08462115]
[1625659041896,5.7432339,34811.0,34807.0,1.25602927]
[1625659041897,5.7432339,34811.0,34808.0,0.08456309]
[1625659042014,5.75600033,34811.0,34808.0,0.08456309]
[1625659042135,3.51173138,34809.0,34807.0,0.32513857]
[1625659042437,3.51190176,34808.0,34807.0,0.32513857]
[1625659042859,3.51190176,34808.0,34807.0,0.24057544]
[1625659042860,5.01403636,34808.0,34807.0,0.24057544]
[1625659044062,3.51190176,34808.0,34807.0,0.24057544]
[1625659044782,5.01263988,34808.0,34807.0,0.24057544]
[1625659046705,4.6997,34804.0,34803.0,0.32503245]
[1625659046825,4.92958,34804.0,34803.0,0.32503245]
[1625659046946,7.0970545,34804.0,34803.0,0.32503245]
[1625659047489,7.0970545,34804.0,34803.0,0.24057544]
[1625659047490,8.4304078,34804.0,34803.0,0.24057544]
[1625659047732,8.91155868,34804.0,34803.0,0.24057544]
[1625659048029,7.57820538,34804.0,34803.0,0.24057544]
[1625659048392,8.91071381,34804.0,34803.0,0.24057544]
[1625659050014,7.57820538,34804.0,34803.0,0.24057544]
[1625659055427,6.41111655,34804.0,34803.0,0.24057544]
[1625659057590,5.41073088,34804.0,34803.0,0.24057544]
[1625659057831,1.70824411,34804.0,34803.0,0.24057544]
[1625659058011,1.47836411,34804.0,34803.0,0.24057544]
[1625659058795,1.47836411,34804.0,34801.0,4.9023]
[1625659059032,0.9969633,34803.0,34801.0,4.9023]
[1625659059272,1.47813061,34804.0,34801.0,4.9023]
[1625659059752,0.24057544,34803.0,34801.0,4.9023]
[1625659060600,1.2371566,34803.0,34801.0,4.9023]
[1625659062467,1.2371566,34803.0,34800.0,0.24057544]
[1625659062588,0.99575794,34801.0,34800.0,0.24057544]
[1625659063431,2.1566137,34801.0,34800.0,0.24057544]
[1625659064094,2.1566137,34801.0,34796.0,0.24057544]
[1625659064337,0.9948977,34799.0,34796.0,0.24057544]
[1625659064454,1.2973477,34799.0,34796.0,0.24057544]
[1625659064995,0.99446793,34798.0,34796.0,0.24057544]
[1625659065236,0.99468604,34797.0,34796.0,0.24057544]
[1625659065480,0.99476074,34798.0,34792.0,0.24057544]
[1625659065719,5.127,34793.0,34792.0,0.24057544]
[1625659065840,5.60815088,34793.0,34792.0,0.24057544]
[1625659066382,5.60815088,34793.0,34790.0,0.08419336]
[1625659066625,0.99291888,34791.0,34785.0,2.08234386]
[1625659066741,0.99291888,34791.0,34785.0,0.9036]
[1625659066862,1.15780942,34790.0,34785.0,0.9036]
[1625659066980,0.9924317,34789.0,34785.0,0.9036]
[1625659067222,0.08277654,34786.0,34785.0,0.9036]
[1625659067467,0.9924317,34789.0,34785.0,0.9036]
[1625659067944,0.72172632,34786.0,34785.0,0.9036]
[1625659068305,0.80448566,34786.0,34785.0,0.9036]
[1625659068427,0.80448566,34786.0,34785.0,0.90859154]
[1625659068549,0.80448566,34786.0,34785.0,0.00499154]
[1625659068788,0.80448566,34786.0,34780.0,0.08414402]
[1625659068908,0.80448566,34786.0,34779.0,0.08414757]
[1625659068909,0.72172632,34786.0,34779.0,0.08414757]
[1625659069092,1.15240424,34784.0,34779.0,0.08414757]
[1625659069210,1.24395857,34782.0,34771.0,0.08407276]
[1625659069327,4.1682,34772.0,34770.0,0.08407678]
[1625659069450,4.38242,34772.0,34770.0,0.08407678]
[1625659069749,4.38242,34772.0,34771.0,0.00498179]
[1625659069872,5.10414632,34772.0,34771.0,0.00498179]
[1625659070230,5.10414632,34772.0,34770.0,0.08407678]
[1625659070351,5.18645971,34772.0,34764.0,0.084087]
[1625659070594,5.18645971,34772.0,34761.0,1.00904397]
[1625659070595,0.08221359,34768.0,34761.0,1.00904397]
[1625659070711,0.08221359,34768.0,34759.0,0.08410009]
[1625659070890,0.35692104,34763.0,34755.0,0.08412235]
[1625659071012,4.054,34756.0,34755.0,0.08412235]
[1625659071192,4.054,34756.0,34752.0,1.00946815]
[1625659071193,4.29717,34756.0,34752.0,0.08392368]
[1625659071373,4.29717,34756.0,34751.0,0.08392755]
[1625659071618,0.24317,34756.0,34749.0,0.0839295]
[1625659071853,0.24317,34756.0,34751.0,0.24057544]
[1625659071854,0.24057544,34753.0,34751.0,0.24057544]
[1625659072152,0.24057544,34753.0,34752.0,5.08712763]
[1625659072272,0.24057544,34753.0,34752.0,5.0032]
[1625659072393,0.48374544,34756.0,34752.0,5.0032]
[1625659072513,0.48374544,34756.0,34752.0,5.08712568]
[1625659072693,0.24057544,34756.0,34752.0,5.08712568]
[1625659072811,0.24057544,34772.0,34752.0,5.08712568]
[1625659072812,0.082109,34770.0,34753.0,1.00699849]
[1625659072931,0.082109,34770.0,34753.0,1.33271849]
[1625659073053,0.24057544,34772.0,34757.0,0.08379986]
[1625659073292,0.24057544,34772.0,34758.0,0.08379787]
[1625659073477,0.24057544,34772.0,34759.0,0.08379693]
[1625659073594,0.24057544,34772.0,34766.0,3.6216]
[1625659074012,0.54471544,34767.0,34766.0,3.6216]
[1625659077799,0.24057544,34767.0,34766.0,3.6216]
[1625659078221,0.24057544,34769.0,34766.0,3.92621]
[1625659079963,0.24057544,34769.0,34768.0,0.24057544]
[1625659080080,0.24057544,34772.0,34768.0,0.24057544]
[1625659081886,0.24057544,34772.0,34771.0,0.24057544]
[1625659084106,0.24057544,34772.0,34771.0,0.55369544]
[1625659084830,0.9356,34778.0,34771.0,0.55369544]
[1625659085914,0.9356,34778.0,34777.0,0.24057544]
[1625659086033,0.24057544,34779.0,34778.0,4.618]
[1625659087535,0.24057544,34779.0,34778.0,4.85026]
[1625659091741,0.24057544,34789.0,34778.0,4.85026]
[1625659092045,0.24057544,34789.0,34788.0,0.24057544]
[1625659092163,0.24057544,34789.0,34788.0,0.52942544]
[1625659092766,0.24057544,34790.0,34788.0,0.52942544]
[1625659093967,0.24057544,34790.0,34789.0,0.24057544]
[1625659095051,0.24057544,34790.0,34789.0,4.01647544]
[1625659097400,0.24057544,34790.0,34789.0,4.32821544]
[1625659098837,0.3233767,34790.0,34789.0,4.32821544]
[1625659098957,0.3233767,34790.0,34789.0,4.01647544]
[1625659100041,0.24057544,34790.0,34789.0,4.01647544]
[1625659102269,0.24057544,34790.0,34789.0,0.24057544]
[1625659104254,0.24057544,34790.0,34789.0,0.51443544]
[1625659104796,0.90279351,34790.0,34789.0,4.64863544]
[1625659105035,0.24057544,34790.0,34789.0,4.64863544]
[1625659105816,0.24057544,34790.0,34789.0,4.6749766]
[1625659106416,0.90291692,34790.0,34789.0,4.6749766]
[1625659108278,0.90291692,34790.0,34789.0,0.5407766]
[1625659109060,0.90291692,34790.0,34789.0,0.2669166]
[1625659109180,1.18748205,34790.0,34789.0,0.2669166]
[1625659109422,3.34457183,34790.0,34789.0,0.2669166]
[1625659117830,4.67574951,34790.0,34789.0,0.2669166]
[1625659117952,3.34457183,34790.0,34789.0,0.2669166]
[1625659118192,4.67628355,34790.0,34789.0,0.2669166]
[1625659119394,4.67628355,34790.0,34789.0,0.27189389]
[1625659129912,5.17831111,34790.0,34789.0,0.27189389]
[1625659131292,6.6872485,34790.0,34789.0,0.27189389]
[1625659131895,5.17831111,34790.0,34789.0,0.27189389]
[1625659135024,6.69333009,34790.0,34789.0,0.27189389]
[1625659139351,6.69333009,34790.0,34789.0,0.35656155]
[1625659140073,6.45275465,34790.0,34789.0,0.35656155]
[1625659140196,4.93773567,34790.0,34789.0,1.4571732]
[1625659140315,3.176993,34790.0,34789.0,1.4571732]
[1625659140433,3.176993,34790.0,34789.0,3.89880997]
[1625659140677,1.84528128,34790.0,34789.0,5.25327822]
[1625659141454,1.84528128,34790.0,34789.0,5.23708164]
[1625659141999,0.68378416,34790.0,34789.0,5.23708164]
[1625659144278,0.50202756,34790.0,34789.0,5.23708164]
[1625659144582,0.08481088,34790.0,34789.0,6.76013958]
[1625659145243,0.08480891,34791.0,34789.0,6.76013958]
[1625659145365,0.50799654,34792.0,34789.0,6.76013958]
[1625659145483,0.50799654,34792.0,34790.0,4.57032814]
[1625659145723,0.50799654,34792.0,34791.0,4.57180168]
[1625659146084,0.50799654,34792.0,34791.0,3.05284714]
[1625659146984,0.50799654,34792.0,34791.0,3.06299172]
[1625659147886,0.50799654,34792.0,34791.0,3.07918284]
[1625659148670,0.50747094,34793.0,34791.0,4.60181236]
[1625659148914,0.50744979,34794.0,34792.0,3.33136932]
[1625659149091,0.50744979,34794.0,34793.0,3.0452295]
[1625659149211,0.50744979,34794.0,34793.0,3.05020052]
[1625659149874,0.50744979,34794.0,34793.0,3.07652725]
[1625659150235,1.18305807,34798.0,34793.0,3.07652725]
[1625659150236,0.50695002,34795.0,34793.0,3.07652725]
[1625659150475,0.50695002,34795.0,34794.0,3.52521165]
[1625659150715,0.50695002,34795.0,34794.0,3.53018256]
[1625659150896,0.50652495,34796.0,34794.0,3.53018256]
[1625659151016,0.50652495,34796.0,34794.0,3.55650929]
[1625659151135,0.50652495,34796.0,34795.0,3.04397186]
[1625659151256,0.50652495,34796.0,34795.0,3.04894267]
[1625659151618,0.50617367,34797.0,34795.0,3.04894267]
[1625659151858,0.50617367,34797.0,34796.0,1.69020173]
[1625659152099,0.50617367,34797.0,34796.0,1.69517247]
[1625659152398,0.50617367,34797.0,34796.0,3.28790632]
[1625659152758,0.50617367,34797.0,34796.0,7.50320632]
[1625659152880,0.50617367,34797.0,34796.0,6.14607717]
[1625659153478,0.50647244,34798.0,34796.0,7.4976231]
[1625659153658,0.50647244,34798.0,34796.0,7.50259378]
[1625659153778,0.50647244,34798.0,34797.0,1.6893135]
[1625659154500,0.50647244,34798.0,34797.0,1.92988894]
[1625659154680,0.50647244,34798.0,34797.0,2.01517509]
[1625659155041,0.50619999,34799.0,34797.0,2.01517509]
[1625659155401,0.50619999,34799.0,34798.0,1.68861819]
[1625659155760,0.50619999,34799.0,34798.0,0.50658546]
[1625659156962,0.50619999,34799.0,34798.0,0.59187161]
[1625659157625,0.5047356,34800.0,34798.0,0.59187161]
[1625659157866,0.5047356,34800.0,34799.0,0.50635014]
[1625659157988,0.5047356,34800.0,34799.0,0.84963014]
[1625659158529,0.5047356,34800.0,34799.0,1.09020558]
[1625659159793,0.5047356,34800.0,34799.0,1.17549173]
[1625659160271,0.8409901,34800.0,34799.0,1.17549173]
[1625659160631,0.3362545,34800.0,34799.0,1.17549173]
[1625659160751,0.33627999,34801.0,34799.0,1.17549173]
[1625659160995,0.3361471,34802.0,34800.0,0.5060138]
[1625659161235,0.33628795,34803.0,34801.0,0.50599625]
[1625659161475,0.33628795,34803.0,34799.0,1.84984045]
[1625659161476,0.33628795,34803.0,34802.0,0.50599551]
[1625659162194,0.84071838,34804.0,34802.0,0.50599551]
[1625659162376,0.84071838,34804.0,34803.0,0.50598909]
[1625659162496,0.84071838,34804.0,34803.0,0.98713997]
[1625659162797,0.33637048,34804.0,34803.0,0.98713997]
[1625659163940,0.33637048,34804.0,34803.0,5.45363997]
[1625659164119,0.33637048,34804.0,34803.0,5.53892612]
[1625659164899,1.3449776,34810.0,34803.0,5.53892612]
[1625659164900,0.33664306,34806.0,34803.0,5.53892612]
[1625659165141,0.33664306,34806.0,34805.0,0.33704069]
[1625659165441,0.84134462,34806.0,34805.0,0.33704069]
[1625659165801,0.84134462,34806.0,34805.0,0.42232684]
[1625659166162,0.84134462,34806.0,34805.0,0.08528615]
[1625659166521,0.84134462,34806.0,34805.0,0.32586159]
[1625659166822,0.33664306,34806.0,34805.0,0.32586159]
[1625659168623,0.33664306,34806.0,34805.0,0.24057544]
[1625659168744,0.33627975,34807.0,34805.0,0.24057544]
[1625659169465,0.33627975,34807.0,34806.0,0.00498122]
[1625659169827,0.33627975,34807.0,34806.0,0.09026737]
[1625659170607,0.33627975,34807.0,34806.0,0.33084281]
[1625659172471,0.33627975,34807.0,34806.0,0.24555666]
[1625659173434,0.33627975,34807.0,34806.0,0.33084281]
[1625659177040,0.33627975,34807.0,34806.0,0.24555666]
[1625659178183,0.33627975,34807.0,34806.0,0.33084281]
[1625659178422,0.3364708,34808.0,34806.0,0.33084281]
[1625659178664,0.84113247,34809.0,34806.0,0.33084281]
[1625659178844,0.84113247,34809.0,34807.0,0.00497941]
[1625659178964,0.33651034,34809.0,34807.0,0.00497941]
[1625659179204,0.8415063,34810.0,34808.0,0.08528615]
[1625659179503,0.33665966,34810.0,34808.0,0.08528615]
[1625659179626,0.33665966,34810.0,34809.0,0.26763923]
[1625659179744,0.33665966,34810.0,34809.0,0.35292538]
[1625659179867,0.84157596,34811.0,34809.0,0.35292538]
[1625659180165,0.33674826,34810.0,34809.0,0.35292538]
[1625659180410,0.33674826,34810.0,34809.0,0.26266]
[1625659180648,0.33674826,34810.0,34809.0,0.26763851]
[1625659180769,0.33674826,34810.0,34809.0,0.50821395]
[1625659181551,0.33674803,34811.0,34809.0,0.50821395]
[1625659181672,0.33674803,34811.0,34810.0,3.8875]
[1625659181911,0.33674803,34811.0,34810.0,3.8924782]
[1625659182212,0.33674803,34811.0,34810.0,3.97776435]
[1625659182755,0.33674803,34811.0,34810.0,4.21833979]
[1625659183117,0.33672875,34812.0,34810.0,4.21833979]
[1625659183357,0.33672464,34813.0,34810.0,4.21833979]
[1625659183602,0.33672464,34813.0,34811.0,0.0049782]
[1625659184500,0.33672464,34813.0,34812.0,0.08528615]
[1625659184800,0.33672464,34813.0,34812.0,0.32586159]
[1625659185041,0.33672464,34813.0,34812.0,0.33083958]
[1625659185761,0.84165198,34814.0,34812.0,0.33083958]
[1625659186121,0.84165198,34814.0,34813.0,0.00497807]
[1625659186241,0.84165198,34814.0,34813.0,0.09026422]
[1625659186242,0.33664916,34814.0,34813.0,0.09026422]
[1625659186724,0.84152133,34815.0,34813.0,0.09026422]
[1625659186845,0.84152133,34815.0,34814.0,0.24057544]
[1625659187263,0.50488297,34815.0,34814.0,0.24555323]
[1625659187869,0.8415202,34815.0,34814.0,0.24555323]
[1625659188166,0.33663723,34815.0,34814.0,0.24555323]
[1625659188827,0.8415996,34815.0,34814.0,0.24555323]
[1625659188949,0.8415996,34815.0,34814.0,0.33083938]
[1625659190870,0.8415996,34815.0,34814.0,0.24555323]
[1625659191110,0.50496237,34815.0,34814.0,0.24555323]
[1625659192495,1.51490576,34815.0,34814.0,0.27187202]
[1625659192614,1.51490576,34815.0,34814.0,0.26689423]
[1625659192977,2.6927518,34815.0,34814.0,0.26689423]
[1625659193093,2.70554986,34815.0,34814.0,0.26689423]
[1625659193515,4.05191676,34815.0,34814.0,0.26689423]
[1625659194056,4.05191676,34815.0,34814.0,0.24057544]
[1625659195081,2.70554986,34815.0,34814.0,0.24057544]
[1625659195380,2.70554986,34815.0,34814.0,0.26689423]
[1625659195919,4.05296694,34815.0,34814.0,0.26689423]
[1625659196942,4.26708694,34815.0,34814.0,0.26689423]
[1625659197425,4.26708694,34815.0,34814.0,0.24057544]
[1625659198505,4.05296694,34815.0,34814.0,0.26689423]
[1625659200490,4.05296694,34815.0,34814.0,0.27187892]
[1625659200491,3.37979338,34815.0,34814.0,0.27187892]
[1625659200613,3.37979338,34815.0,34814.0,0.53572892]
[1625659201030,3.36699532,34815.0,34814.0,0.70446793]
[1625659201332,3.36699532,34815.0,34814.0,0.53572892]
[1625659201511,3.36699532,34815.0,34814.0,0.70446785]
[1625659201752,3.36699532,34815.0,34814.0,1.04207342]
[1625659201871,3.36699532,34815.0,34814.0,1.01575463]
[1625659202651,3.36699532,34815.0,34814.0,1.35340156]
[1625659202894,3.36699532,34815.0,34814.0,1.37972035]
[1625659203612,3.36699532,34815.0,34814.0,1.04213022]
[1625659203973,3.36699532,34815.0,34814.0,1.04229418]
[1625659204754,3.36699532,34815.0,34814.0,1.71767683]
[1625659205293,3.36699532,34815.0,34814.0,1.69135804]
[1625659205413,2.18914928,34815.0,34814.0,2.70437684]
[1625659206556,2.18914928,34815.0,34814.0,2.73069563]
[1625659206676,1.17920589,34815.0,34814.0,3.91249993]
[1625659206915,0.84274587,34815.0,34814.0,3.88618114]
[1625659207156,0.50677937,34815.0,34814.0,5.23661087]
[1625659207576,0.00647937,34815.0,34814.0,5.23661087]
[1625659207697,0.675477,34817.0,34814.0,5.23661087]
[1625659207698,0.50665918,34817.0,34814.0,5.23661087]
[1625659207938,0.50665918,34817.0,34816.0,4.72566761]
[1625659208118,1.18236171,34821.0,34816.0,4.72566761]
[1625659208119,1.18242816,34820.0,34816.0,4.72566761]
[1625659208237,1.18242816,34820.0,34816.0,4.75198344]
[1625659208360,0.50677905,34820.0,34819.0,3.37079804]
[1625659208599,0.50651673,34821.0,34819.0,4.71883777]
[1625659208719,0.50651673,34821.0,34819.0,4.72381981]
[1625659208840,1.18179094,34823.0,34820.0,4.71646733]
[1625659208960,1.18179094,34823.0,34822.0,0.72172632]
[1625659209081,1.18179094,34823.0,34822.0,4.33802903]
[1625659209382,1.18179094,34823.0,34822.0,4.34301103]
[1625659209624,0.50650594,34823.0,34822.0,4.34301103]